fUST/lending_fUST_20250729
["ID","MTS","AMOUNT","RATE_DAILY","PERIOD"]
[375939657,1753791064538,-2680.67,0.00020547,2]
[375939658,1753791064547,-460.0,0.00020547,2]
[375939659,1753791064556,-460.0,0.00020547,2]
[375939660,1753791064565,-460.0,0.00020547,2]
[375939661,1753791064575,-610.95,0.00020547,2]
[375939662,1753791064585,-744.54,0.00020547,2]
[375939663,1753791064593,-556.45,0.00020547,2]
[375939664,1753791064602,-833.7,0.00020547,2]
[375939665,1753791064611,-460.0,0.00020547,2]
[375939666,1753791064620,-460.0,0.00020547,2]
[375939667,1753791064630,-460.0,0.00020547,2]
[375939668,1753791064639,-151.0,0.00020547,2]
[375939669,1753791064649,-460.0,0.00020547,2]
[375939670,1753791064658,-831.74,0.00020547,2]
[375939671,1753791064667,-241.42250435,0.00020547,2]
[375939672,1753791064678,-1849.15,0.00020547,2]
[375939673,1753791064687,-1107.09,0.00020547,2]
[375939674,1753791064697,-466.93380232,0.00020547,2]
[375939675,1753791064706,-460.0,0.00020547,2]
[375939676,1753791064716,-4488.77,0.00020547,2]
[375939677,1753791064725,-3497.98,0.00020547,2]
[375939678,1753791064735,-460.0,0.00020547,2]
[375939679,1753791064745,-615.04,0.00020547,2]
[375939680,1753791064754,-903.87,0.00020547,2]
[375939681,1753791064763,-460.0,0.00020547,2]
[375939682,1753791064773,-460.0,0.00020547,2]
[375939683,1753791064782,-1073.25,0.00020547,2]
[375939684,1753791064792,-3341.77,0.00020547,2]
[375939685,1753791064801,-1172.04,0.00020547,2]
[375939686,1753791064810,-1568.25,0.00020547,2]
[375939687,1753791064820,-460.0,0.00020547,2]
[375939688,1753791064829,-768.76,0.00020547,2]
[375939689,1753791064839,-460.0,0.00020547,2]
[375939690,1753791064848,-1248.97,0.00020547,2]
[375939691,1753791064858,-460.0,0.00020547,2]
[375939692,1753791064867,-2420.89,0.00020547,2]
[375939693,1753791064877,-460.0,0.00020547,2]
[375939694,1753791064886,-151.0,0.00020547,2]
[375939695,1753791064895,-460.0,0.00020547,2]
[375939696,1753791064905,-460.0,0.00020547,2]
[375939697,1753791064914,-615.99,0.00020547,2]
[375939698,1753791064924,-3908.94,0.00020547,2]
[375939699,1753791064934,-752.16,0.00020547,2]
[375939700,1753791064943,-1138.02,0.00020547,2]
[375939701,1753791064952,-460.0,0.00020547,2]
[375939702,1753791064961,-151.0,0.00020547,2]
[375939703,1753791064970,-460.0,0.00020547,2]
[375939704,1753791064983,-460.0,0.00020547,2]
[375939705,1753791064992,-842.02,0.00020547,2]
[375939706,1753791065001,-460.0,0.00020547,2]
[375939707,1753791065010,-460.0,0.00020547,2]
[375939708,1753791065020,-3520.92,0.00020547,2]
[375939709,1753791065029,-2797.36,0.00020547,2]
[375939710,1753791065039,-535.2,0.00020547,2]
[375939711,1753791065049,-460.0,0.00020547,2]
[375939712,1753791065060,-460.0,0.00020547,2]
[375939713,1753791065069,-460.0,0.00020547,2]
[375939714,1753791065078,-460.0,0.00020547,2]
[375939715,1753791065088,-1183.85,0.00020547,2]
[375939716,1753791065097,-460.0,0.00020547,2]
[375939717,1753791065106,-1225.78,0.00020547,2]
[375939718,1753791065114,-2478.91,0.00020547,2]
[375939719,1753791065123,-974.56,0.00020547,2]
[375939720,1753791065133,-947.34,0.00020547,2]
[375939721,1753791065142,-460.0,0.00020547,2]
[375939722,1753791065151,-460.0,0.00020547,2]
[375939723,1753791065160,-460.0,0.00020547,2]
[375939724,1753791065171,-166.467733,0.00020547,2]
[375939725,1753791065180,-1466.65,0.00020547,2]
[375939726,1753791065189,-166.467733,0.00020547,2]
[375939727,1753791065199,-460.0,0.00020547,2]
[375939728,1753791065208,-391.97824157,0.00020547,2]
[375939729,1753791065217,-460.0,0.00020547,2]
[375939730,1753791065227,-652.93,0.00020547,2]
[375939731,1753791065236,-460.0,0.00020547,2]
[375939732,1753791065245,-886.09,0.00020547,2]
[375939733,1753791065254,-886.1,0.00020547,2]
[375939734,1753791065264,-500.0,0.00020548,2]
[375939735,1753791065273,-151.31289769,0.00020548,2]
[375939736,1753791065282,-151.0,0.00020548,2]
[375939737,1753791065290,-271.76297711,0.00020548,2]
[375939738,1753791065299,-500.0,0.00020548,2]
[375939739,1753791065309,-664.0,0.00020548,2]
[375939740,1753791065318,-500.0,0.00020548,2]
[375939741,1753791065327,-151.0,0.00020548,2]
[375939742,1753791065336,-500.0,0.00020548,2]
[375939743,1753791065345,-500.0,0.00020548,2]
[375939744,1753791065354,-290.54900114,0.00020548,2]
[375939745,1753791065364,-151.0,0.00020548,2]
[375939746,1753791065373,-500.0,0.00020568,2]
[375939747,1753791065383,-1584.093601,0.00020568,2]
[375939748,1753791065392,-503.74849276,0.00020568,2]
[375939749,1753791065402,-475.42391577,0.00020568,2]
[375939750,1753791065411,-1000.0,0.00020568,2]
[375939751,1753791065422,-500.0,0.00020568,2]
[375939752,1753791065431,-1500.0,0.00020568,2]
[375939753,1753791065441,-178.12299723,0.00020568,2]
[375939754,1753791065450,-1500.0,0.00020568,2]
[375939755,1753791065459,-1174.81183525,0.00020574,2]
[375939756,1753791065468,-844.9556452,0.0002059,3]
[375939757,1753791065477,-1129.39864469,0.00020721,2]
[375939758,1753791065487,-844.9556452,0.00020728,3]
[375939759,1753791065495,-525.0,0.00020778,2]
[375939760,1753791065504,-420.0,0.00020781,2]
[375939761,1753791065513,-420.0,0.00020781,2]
[375939762,1753791065522,-1680.0,0.00020782,2]
[375939763,1753791065531,-573.14807979,0.0002079,2]
[375939764,1753791065540,-525.0,0.0002079,2]
[375939765,1753791065550,-502.49019685,0.00020802,2]
[375939766,1753791065559,-460.0,0.00020821,2]
[375939767,1753791065568,-460.0,0.00020821,2]
[375939768,1753791065577,-460.0,0.00020821,2]
[375939769,1753791065585,-460.0,0.00020821,2]
[375939770,1753791065595,-460.0,0.00020821,2]
[375939771,1753791065604,-460.0,0.00020821,2]
[375939772,1753791065613,-460.0,0.00020821,2]
[375939773,1753791065623,-460.0,0.00020821,2]
[375939774,1753791065632,-460.0,0.00020821,2]
[375939775,1753791065641,-460.0,0.00020821,2]
[375939776,1753791065651,-460.0,0.00020821,2]
[375939777,1753791065660,-460.0,0.00020821,2]
[375939778,1753791065669,-460.0,0.00020821,2]
[375939779,1753791065680,-460.0,0.00020821,2]
[375939780,1753791065689,-479.32,0.00020821,2]
[375939781,1753791065698,-460.0,0.00020821,2]
[375939782,1753791065707,-460.0,0.00020821,2]
[375939783,1753791065717,-1278.57,0.00020821,2]
[375939784,1753791065726,-460.0,0.00020821,2]
[375939785,1753791065738,-1028.8,0.00020821,2]
[375939786,1753791065749,-460.0,0.00020821,2]
[375939787,1753791065758,-460.0,0.00020821,2]
[375939788,1753791065767,-589.11,0.00020821,2]
[375939789,1753791065777,-460.0,0.00020821,2]
[375939790,1753791065786,-534.3,0.00020821,2]
[375939791,1753791065795,-460.0,0.00020821,2]
[375939792,1753791065805,-3624.41,0.00020821,2]
[375939793,1753791065815,-472.65367511,0.00020821,2]
[375939794,1753791065825,-159.138507,0.00020821,2]
[375939795,1753791065835,-460.0,0.00020821,2]
[375939796,1753791065844,-542.31893611,0.00020821,2]
[375939797,1753791065854,-869.538,0.00020821,2]
[375939798,1753791065863,-1397.1,0.00020821,2]
[375939799,1753791065872,-460.0,0.00020821,2]
[375939800,1753791065881,-655.07,0.00020821,2]
[375939801,1753791065890,-460.0,0.00020821,2]
[375939802,1753791065900,-811.6,0.00020821,2]
[375939803,1753791065909,-460.0,0.00020821,2]
[375939804,1753791065918,-511.0,0.00020821,2]
[375939805,1753791065929,-460.0,0.00020821,2]
[375939806,1753791065939,-460.0,0.00020821,2]
[375939807,1753791065949,-460.0,0.00020821,2]
[375939808,1753791065959,-523.8,0.00020821,2]
[375939809,1753791065969,-460.0,0.00020821,2]
[375939810,1753791065981,-591.88,0.00020821,2]
[375939811,1753791065990,-580.07,0.00020821,2]
[375939812,1753791065999,-460.0,0.00020821,2]
[375939813,1753791066009,-460.0,0.00020821,2]
[375939814,1753791066019,-460.0,0.00020821,2]
[375939815,1753791066028,-460.0,0.00020821,2]
[375939816,1753791066037,-460.0,0.00020821,2]
[375939817,1753791066047,-514.97,0.00020821,2]
[375939818,1753791066062,-471.92079923,0.00020821,2]
[375939819,1753791066071,-506.4,0.00020821,2]
[375939820,1753791066083,-460.0,0.00020821,2]
[375939821,1753791066093,-460.0,0.00020821,2]
[375939822,1753791066103,-460.0,0.00020821,2]
[375939823,1753791066112,-151.0,0.00020821,2]
[375939824,1753791066122,-460.0,0.00020821,2]
[375939825,1753791066131,-460.0,0.00020821,2]
[375939826,1753791066141,-1159.19,0.00020821,2]
[375939827,1753791066150,-460.0,0.00020821,2]
[375939828,1753791066159,-460.0,0.00020821,2]
[375939829,1753791066169,-460.0,0.00020821,2]
[375939830,1753791066179,-460.0,0.00020821,2]
[375939831,1753791066188,-460.0,0.00020821,2]
[375939832,1753791066198,-460.0,0.00020821,2]
[375939833,1753791066207,-642.85,0.00020821,2]
[375939834,1753791066217,-460.0,0.00020821,2]
[375939835,1753791066227,-7670.51,0.00020821,2]
[375939836,1753791066236,-460.0,0.00020821,2]
[375939837,1753791066246,-460.0,0.00020821,2]
[375939838,1753791066255,-2911.03,0.00020821,2]
[375939839,1753791066266,-460.0,0.00020821,2]
[375939840,1753791066274,-460.0,0.00020821,2]
[375939841,1753791066285,-460.0,0.00020821,2]
[375939842,1753791066295,-460.0,0.00020821,2]
[375939843,1753791066306,-460.0,0.00020821,2]
[375939844,1753791066315,-465.72489267,0.00020821,2]
[375939845,1753791066324,-576.1,0.00020821,2]
[375939846,1753791066333,-460.0,0.00020821,2]
[375939847,1753791066342,-460.0,0.00020821,2]
[375939848,1753791066351,-460.0,0.00020821,2]
[375939849,1753791066360,-460.0,0.00020821,2]
[375939850,1753791066372,-9422.46,0.00020821,2]
[375939851,1753791066381,-1195.81,0.00020821,2]
[375939852,1753791066392,-460.0,0.00020821,2]
[375939853,1753791066402,-460.0,0.00020821,2]
[375939854,1753791066413,-460.0,0.00020821,2]
[375939855,1753791066423,-460.0,0.00020821,2]
[375939856,1753791066432,-460.0,0.00020821,2]
[375939857,1753791066441,-460.0,0.00020821,2]
[375939858,1753791066451,-460.0,0.00020821,2]
[375939859,1753791066460,-887.99,0.00020821,2]
[375939860,1753791066469,-2680.67,0.00020821,2]
[375939861,1753791066478,-460.0,0.00020821,2]
[375939862,1753791066487,-460.0,0.00020821,2]
[375939863,1753791066496,-610.95,0.00020821,2]
[375939864,1753791066505,-744.54,0.00020821,2]
[375939865,1753791066514,-833.7,0.00020821,2]
[375939866,1753791066632,-556.45,0.00020821,2]
[375939867,1753791066642,-460.0,0.00020821,2]
[375939868,1753791066651,-460.0,0.00020821,2]
[375939869,1753791066660,-472.21419956,0.00020821,2]
[375939870,1753791066670,-831.74,0.00020821,2]
[375939871,1753791066679,-1849.15,0.00020821,2]
[375939872,1753791066687,-1107.09,0.00020821,2]
[375939873,1753791066696,-460.0,0.00020821,2]
[375939874,1753791066706,-4488.77,0.00020821,2]
[375939875,1753791066715,-3497.98,0.00020821,2]
[375939876,1753791066725,-460.0,0.00020821,2]
[375939877,1753791066735,-615.04,0.00020821,2]
[375939878,1753791066744,-903.87,0.00020821,2]
[375939879,1753791066754,-347.95595481,0.00020821,2]
[375939880,1753791066769,-112.04404519,0.00020821,2]
[375939881,1753791066779,-460.0,0.00020821,2]
[375939882,1753791066788,-1073.25,0.00020821,2]
[375939883,1753791066797,-89.85595481,0.00020821,2]
[375939884,1753791066809,-1082.18404519,0.00020821,2]
[375939885,1753791066819,-3341.77,0.00020821,2]
[375939886,1753791066828,-1568.25,0.00020821,2]
[375939887,1753791066837,-768.76,0.00020821,2]
[375939888,1753791066847,-460.0,0.00020821,2]
[375939889,1753791066856,-1248.97,0.00020821,2]
[375939890,1753791066865,-2420.89,0.00020821,2]
[375939891,1753791066874,-460.0,0.00020821,2]
[375939892,1753791066883,-460.0,0.00020821,2]
[375939893,1753791066893,-151.0,0.00020821,2]
[375939894,1753791066902,-460.0,0.00020821,2]
[375939895,1753791066911,-615.99,0.00020821,2]
[375939896,1753791066922,-3908.94,0.00020821,2]
[375939897,1753791066931,-752.16,0.00020821,2]
[375939898,1753791066940,-1138.02,0.00020821,2]
[375939899,1753791066949,-460.0,0.00020821,2]
[375939900,1753791066959,-151.0,0.00020821,2]
[375939901,1753791066968,-460.0,0.00020821,2]
[375939902,1753791066980,-460.0,0.00020821,2]
[375939903,1753791066989,-842.02,0.00020821,2]
[375939904,1753791066999,-460.0,0.00020821,2]
[375939905,1753791067008,-460.0,0.00020821,2]
[375939906,1753791067019,-3520.92,0.00020821,2]
[375939907,1753791067028,-2797.36,0.00020821,2]
[375939908,1753791067038,-535.2,0.00020821,2]
[375939909,1753791067047,-460.0,0.00020821,2]
[375939910,1753791067057,-460.0,0.00020821,2]
[375939911,1753791067066,-460.0,0.00020821,2]
[375939912,1753791067075,-1183.85,0.00020821,2]
[375939913,1753791067084,-460.0,0.00020821,2]
[375939914,1753791067093,-1225.78,0.00020821,2]
[375939915,1753791067102,-151.0,0.00020821,2]
[375939916,1753791067111,-2478.91,0.00020821,2]
[375939917,1753791067120,-974.56,0.00020821,2]
[375939918,1753791067131,-947.34,0.00020821,2]
[375939919,1753791067140,-387.34693302,0.00020821,2]
[375939920,1753791067149,-460.0,0.00020821,2]
[375939921,1753791067158,-1466.65,0.00020821,2]
[375939922,1753791067167,-151.0,0.00020821,2]
[375939923,1753791067178,-460.0,0.00020821,2]
[375939924,1753791067187,-460.0,0.00020821,2]
[375939925,1753791067196,-652.93,0.00020821,2]
[375939926,1753791067205,-460.0,0.00020821,2]
[375939927,1753791067214,-886.09,0.00020821,2]
[375939928,1753791067223,-886.1,0.00020821,2]
[375939929,1753791067232,-205.18944968,0.00020822,2]
[375939930,1753791067241,-664.0,0.00020822,2]
[375939931,1753791067250,-587.43529069,0.00020822,2]
[375939932,1753791067259,-151.0,0.00020822,2]
[375939933,1753791067269,-500.0,0.00020822,2]
[375939934,1753791067278,-500.0,0.00020822,2]
[375939935,1753791067288,-151.0,0.00020822,2]
[375939936,1753791067297,-3776.4871668,0.00020829,2]
[375939937,1753791067306,-172.08481441,0.00020832,2]
[375939938,1753791067316,-525.0,0.00020843,2]
[375939939,1753791067325,-844.9556452,0.00020866,4]
[375939940,1753791067334,-1680.0,0.00020881,2]
[375939941,1753791067343,-359.341992,0.00020957,2]
[375939942,1753791067352,-359.341992,0.00020957,2]
[375939943,1753791067361,-268.647344,0.00020957,2]
[375939944,1753791067370,-268.647344,0.00020957,2]
[375939945,1753791067379,-525.0,0.00020976,2]
[375939946,1753791067388,-525.0,0.00020983,2]
[375939947,1753791067397,-150.0,0.00020985,2]
[375939948,1753791067406,-150.0,0.00020985,2]
[375939949,1753791067415,-441.10640156,0.00020985,2]
[375939950,1753791067425,-1000.0,0.00020985,2]
[375939951,1753791067434,-1000.0,0.00020985,2]
[375939952,1753791067443,-260.0,0.00020993,2]
[375939953,1753791067452,-500.0,0.00021,2]
[375939954,1753791067462,-509.37952605,0.00021,2]
[375939955,1753791067471,-1000.0,0.00021,2]
[375939956,1753791067480,-1000.0,0.00021,2]
[375939957,1753791067489,-1000.0,0.00021,2]
[375939958,1753791067499,-844.9556452,0.00021003,4]
[375939959,1753791067508,-500.0,0.00021021,2]
[375939960,1753791067517,-1000.0,0.00021021,2]
[375939961,1753791067526,-1000.0,0.00021021,2]
[375939962,1753791067535,-500.0,0.00021021,2]
[375939963,1753791067544,-1760.6,0.00021058,4]
[375939964,1753791067554,-151.0,0.00021095,2]
[375939965,1753791067563,-460.0,0.00021095,2]
[375939966,1753791067572,-460.0,0.00021095,2]
[375939967,1753791067581,-460.0,0.00021095,2]
[375939968,1753791067591,-197.144454,0.00021095,2]
[375939969,1753791067600,-197.144454,0.00021095,2]
[375939970,1753791067609,-460.0,0.00021095,2]
[375939971,1753791067617,-460.0,0.00021095,2]
[375939972,1753791067627,-531.56334443,0.00021095,2]
[375939973,1753791067636,-460.0,0.00021095,2]
[375939974,1753791067646,-485.85401029,0.00021095,2]
[375939975,1753791067655,-460.0,0.00021095,2]
[375939976,1753791067664,-1278.57,0.00021095,2]
[375939977,1753791067673,-460.0,0.00021095,2]
[375939978,1753791067682,-284.46663306,0.00021095,2]
[375939979,1753791067695,-744.33336694,0.00021095,2]
[375939980,1753791067704,-162.59230177,0.00021095,2]
[375939981,1753791067713,-433.38886664,0.00021095,2]
[375939982,1753791067722,-589.11,0.00021095,2]
[375939983,1753791067731,-460.0,0.00021095,2]
[375939984,1753791067739,-534.3,0.00021095,2]
[375939985,1753791067749,-460.0,0.00021095,2]
[375939986,1753791067758,-3624.41,0.00021095,2]
[375939987,1753791067767,-558.52710415,0.00021095,2]
[375939988,1753791067776,-1397.1,0.00021095,2]
[375939989,1753791067785,-187.33520567,0.00021095,2]
[375939990,1753791067902,-272.66479433,0.00021095,2]
[375939991,1753791067912,-218.05503311,0.00021095,2]
[375939992,1753791067925,-437.01496689,0.00021095,2]
[375939993,1753791067934,-460.0,0.00021095,2]
[375939994,1753791067943,-479.53884311,0.00021095,2]
[375939995,1753791067954,-321.0508264,0.00021095,2]
[375939996,1753791067965,-11.01033049,0.00021095,2]
[375939997,1753791067975,-460.0,0.00021095,2]
[375939998,1753791067988,-511.0,0.00021095,2]
[375939999,1753791067997,-151.0,0.00021095,2]
[375940000,1753791068007,-460.0,0.00021095,2]
[375940001,1753791068016,-460.0,0.00021095,2]
[375940002,1753791068026,-523.8,0.00021095,2]
[375940003,1753791068035,-460.0,0.00021095,2]
[375940004,1753791068044,-591.88,0.00021095,2]
[375940005,1753791068055,-580.07,0.00021095,2]
[375940006,1753791068065,-151.0,0.00021095,2]
[375940007,1753791068075,-460.0,0.00021095,2]
[375940008,1753791068084,-460.0,0.00021095,2]
[375940009,1753791068093,-460.0,0.00021095,2]
[375940010,1753791068102,-514.97,0.00021095,2]
[375940011,1753791068111,-460.0,0.00021095,2]
[375940012,1753791068120,-506.4,0.00021095,2]
[375940013,1753791068129,-81.86776354,0.00021095,2]
[375940014,1753791068142,-378.13223646,0.00021095,2]
[375940015,1753791068151,-460.0,0.00021095,2]
[375940016,1753791068160,-460.0,0.00021095,2]
[375940017,1753791068169,-460.0,0.00021095,2]
[375940018,1753791068180,-1159.19,0.00021095,2]
[375940019,1753791068189,-460.0,0.00021095,2]
[375940020,1753791068198,-460.0,0.00021095,2]
[375940021,1753791068207,-221.84695914,0.00021095,2]
[375940022,1753791068468,-238.15304086,0.00021095,2]
[375940023,1753791068478,-460.0,0.00021095,2]
[375940024,1753791068488,-412.53262577,0.00021095,2]
[375940025,1753791068497,-151.0,0.00021095,2]
[375940026,1753791068507,-460.0,0.00021095,2]
[375940027,1753791068515,-642.85,0.00021095,2]
[375940028,1753791068525,-379.400892,0.00021095,2]
[375940029,1753791068641,-460.0,0.00021095,2]
[375940030,1753791068651,-7670.51,0.00021095,2]
[375940031,1753791068660,-379.400892,0.00021095,2]
[375940032,1753791068669,-206.101817,0.00021095,2]
[375940033,1753791068680,-206.101817,0.00021095,2]
[375940034,1753791068689,-151.0,0.00021095,2]
[375940035,1753791068698,-151.0,0.00021095,2]
[375940036,1753791068707,-460.0,0.00021095,2]
[375940037,1753791068717,-151.0,0.00021095,2]
[375940038,1753791068726,-2911.03,0.00021095,2]
[375940039,1753791068735,-460.0,0.00021095,2]
[375940040,1753791068744,-460.0,0.00021095,2]
[375940041,1753791068753,-460.0,0.00021095,2]
[375940042,1753791068762,-460.0,0.00021095,2]
[375940043,1753791068772,-151.0,0.00021095,2]
[375940044,1753791068781,-460.0,0.00021095,2]
[375940045,1753791068791,-576.1,0.00021095,2]
[375940046,1753791068800,-460.0,0.00021095,2]
[375940047,1753791068809,-460.0,0.00021095,2]
[375940048,1753791068819,-460.0,0.00021095,2]
[375940049,1753791068828,-460.0,0.00021095,2]
[375940050,1753791068838,-9422.46,0.00021095,2]
[375940051,1753791068848,-1195.81,0.00021095,2]
[375940052,1753791068857,-460.0,0.00021095,2]
[375940053,1753791068866,-460.0,0.00021095,2]
[375940054,1753791068875,-460.0,0.00021095,2]
[375940055,1753791068885,-460.0,0.00021095,2]
[375940056,1753791068894,-272.800081,0.00021095,2]
[375940057,1753791068904,-887.99,0.00021095,2]
[375940058,1753791068913,-272.800081,0.00021095,2]
[375940059,1753791068924,-460.0,0.00021095,2]
[375940060,1753791068934,-2680.67,0.00021095,2]
[375940061,1753791068943,-610.95,0.00021095,2]
[375940062,1753791068953,-744.54,0.00021095,2]
[375940063,1753791068963,-833.7,0.00021095,2]
[375940064,1753791068972,-556.45,0.00021095,2]
[375940065,1753791068986,-460.0,0.00021095,2]
[375940066,1753791068995,-460.0,0.00021095,2]
[375940067,1753791069005,-151.0,0.00021095,2]
[375940068,1753791069015,-831.74,0.00021095,2]
[375940069,1753791069027,-1849.15,0.00021095,2]
[375940070,1753791069036,-1107.09,0.00021095,2]
[375940071,1753791069046,-460.0,0.00021095,2]
[375940072,1753791069057,-4488.77,0.00021095,2]
[375940073,1753791069066,-3497.98,0.00021095,2]
[375940074,1753791069076,-460.0,0.00021095,2]
[375940075,1753791069086,-615.04,0.00021095,2]
[375940076,1753791069095,-903.87,0.00021095,2]
[375940077,1753791069104,-460.0,0.00021095,2]
[375940078,1753791069114,-1073.25,0.00021095,2]
[375940079,1753791069123,-1172.04,0.00021095,2]
[375940080,1753791069133,-3341.77,0.00021095,2]
[375940081,1753791069142,-1568.25,0.00021095,2]
[375940082,1753791069151,-768.76,0.00021095,2]
[375940083,1753791069160,-460.0,0.00021095,2]
[375940084,1753791069170,-1248.97,0.00021095,2]
[375940085,1753791069182,-2420.89,0.00021095,2]
[375940086,1753791069191,-460.0,0.00021095,2]
[375940087,1753791069201,-460.0,0.00021095,2]
[375940088,1753791069211,-460.0,0.00021095,2]
[375940089,1753791069220,-615.99,0.00021095,2]
[375940090,1753791069230,-3908.94,0.00021095,2]
[375940091,1753791069239,-752.16,0.00021095,2]
[375940092,1753791069248,-1138.02,0.00021095,2]
[375940093,1753791069257,-460.0,0.00021095,2]
[375940094,1753791069266,-460.0,0.00021095,2]
[375940095,1753791069276,-460.0,0.00021095,2]
[375940096,1753791069285,-842.02,0.00021095,2]
[375940097,1753791069294,-2797.36,0.00021095,2]
[375940098,1753791069303,-3520.92,0.00021095,2]
[375940099,1753791069313,-535.2,0.00021095,2]
[375940100,1753791069323,-510.38494717,0.00021095,2]
[375940101,1753791069332,-460.0,0.00021095,2]
[375940102,1753791069341,-460.0,0.00021095,2]
[375940103,1753791069350,-1183.85,0.00021095,2]
[375940104,1753791069360,-460.0,0.00021095,2]
[375940105,1753791069369,-1225.78,0.00021095,2]
[375940106,1753791069378,-2478.91,0.00021095,2]
[375940107,1753791069387,-974.56,0.00021095,2]
[375940108,1753791069397,-947.34,0.00021095,2]
[375940109,1753791069407,-460.0,0.00021095,2]
[375940110,1753791069416,-166.467733,0.00021095,2]
[375940111,1753791069426,-1466.65,0.00021095,2]
[375940112,1753791069435,-166.467733,0.00021095,2]
[375940113,1753791069445,-460.0,0.00021095,2]
[375940114,1753791069455,-460.0,0.00021095,2]
[375940115,1753791069464,-652.93,0.00021095,2]
[375940116,1753791069473,-460.0,0.00021095,2]
[375940117,1753791069483,-886.09,0.00021095,2]
[375940118,1753791069492,-886.1,0.00021095,2]
[375940119,1753791069502,-664.0,0.00021096,2]
[375940120,1753791069512,-292.32034676,0.00021096,2]
[375940121,1753791069526,-207.67965324,0.00021096,2]
[375940122,1753791069535,-156.04339502,0.00021096,2]
[375940123,1753791069547,-343.95660498,0.00021096,2]
[375940124,1753791069556,-237.64785306,0.00021096,2]
[375940125,1753791069566,-151.0,0.000211,4]
[375940126,1753791069575,-500.0,0.00021116,2]
[375940127,1753791069585,-159.8360077,0.00021121,2]
[375940128,1753791069594,-356.877341,0.00021121,2]
[375940129,1753791069603,-320.2107096,0.00021121,2]
[375940130,1753791069612,-90.47148366,0.00021121,2]
[375940131,1753791069716,-266.40585734,0.00021121,2]
[375940132,1753791069726,-178.4386705,0.00021121,2]
[375940133,1753791069735,-844.9556452,0.00021141,4]
[375940134,1753791069744,-525.0,0.00021212,2]
[375940135,1753791069754,-466.39885334,0.00021213,2]
[375940136,1753791069765,-58.60114666,0.00021213,2]
[375940137,1753791069774,-159.138507,0.00021241,3]
[375940138,1753791069783,-150.0,0.00021259,2]
[375940139,1753791069795,-150.0,0.00021259,2]
[375940140,1753791069805,-150.0,0.00021259,2]
[375940141,1753791069814,-2159.0,0.00021259,2]
[375940142,1753791069823,-978.334,0.00021259,2]
[375940143,1753791069832,-844.9556452,0.00021279,5]
[375940144,1753791069842,-200.0,0.00021355,15]
[375940145,1753791069851,-200.0,0.00021355,15]
[375940146,1753791069860,-200.0,0.00021355,15]
[375940147,1753791069870,-200.0,0.00021355,15]
[375940148,1753791069880,-320.0,0.00021355,15]
[375940149,1753791069889,-500.83702583,0.00021367,2]
[375940150,1753791069898,-460.0,0.00021369,2]
[375940151,1753791069907,-359.341992,0.00021369,2]
[375940152,1753791069917,-359.341992,0.00021369,2]
[375940153,1753791069926,-268.647344,0.00021369,2]
[375940154,1753791069935,-268.647344,0.00021369,2]
[375940155,1753791069944,-460.0,0.00021369,2]
[375940156,1753791069954,-460.0,0.00021369,2]